bitfinex/quotes_SOLUSD_20241103
["timestamp","ask_amount","ask_price","bid_price","bid_amount"]
[1730632201791,23.776884,164.48,164.39,1.90906091]
[1730632202001,23.776884,164.48,164.4,1.90906091]
[1730632202213,23.776884,164.48,164.41,1.90906091]
[1730632202387,23.776884,164.48,164.38,20.0]
[1730632202587,23.776884,164.48,164.39,1.90882124]
[1730632202787,23.776884,164.48,164.4,1.90882124]
[1730632202987,23.776884,164.48,164.41,1.90882124]
[1730632203296,23.776884,164.48,164.38,20.0]
[1730632203616,23.776884,164.48,164.39,1.90894322]
[1730632203922,23.776884,164.48,164.4,1.90894322]
[1730632204089,23.776884,164.48,164.41,1.90894322]
[1730632204285,23.776884,164.48,164.38,20.0]
[1730632204492,23.776884,164.48,164.39,1.90899376]
[1730632204713,23.776884,164.48,164.4,1.90899267]
[1730632204912,23.776884,164.48,164.41,1.90899267]
[1730632205218,23.776884,164.48,164.39,1.90900807]
[1730632205404,23.776884,164.48,164.4,1.90900807]
[1730632205609,23.776884,164.48,164.41,1.90900807]
[1730632205810,23.776884,164.48,164.39,1.90900807]
[1730632206012,23.776884,164.48,164.4,1.90900807]
[1730632206314,23.776884,164.44,164.37,6.339999]
[1730632206520,23.776884,164.44,164.38,1.90930034]
[1730632206813,24.027864,164.42,164.39,1.90930034]
[1730632207019,24.027864,164.42,164.37,6.339999]
[1730632207320,23.776884,164.42,164.31,0.12549]
[1730632207486,23.776884,164.42,164.35,6.33903837]
[1730632207689,23.776884,164.42,164.36,1.91003405]
[1730632207905,23.776884,164.42,164.37,1.91003405]
[1730632208107,23.776884,164.42,164.35,6.33736953]
[1730632208416,23.776884,164.42,164.36,1.9098402]
[1730632208913,23.776884,164.42,164.37,1.9098402]
[1730632209112,23.776884,164.42,164.35,6.33736953]
[1730632209113,23.776884,164.42,164.36,1.9098402]
[1730632209295,23.776884,164.42,164.37,1.9098402]
[1730632209495,23.776884,164.42,164.36,1.9098402]
[1730632209709,23.776884,164.42,164.37,1.9098402]
[1730632209907,23.776884,164.42,164.36,1.9098402]
[1730632210114,23.776884,164.42,164.37,1.9098402]
[1730632210298,23.776884,164.42,164.36,1.9098402]
[1730632210500,23.776884,164.42,164.37,1.9098402]
[1730632210713,23.776884,164.42,164.36,1.9098402]
[1730632210911,23.776884,164.42,164.37,1.9098402]
[1730632211094,23.776884,164.42,164.36,1.9098402]
[1730632211414,23.776884,164.42,164.37,1.90953306]
[1730632211710,23.776884,164.42,164.36,1.90953306]
[1730632212018,23.776884,164.42,164.35,6.33736953]
[1730632212423,23.776884,164.42,164.36,1.9095272]
[1730632212711,23.776884,164.42,164.35,6.33736953]
[1730632212913,23.776884,164.4,164.36,1.90948137]
[1730632213323,23.776884,164.4,164.33,6.33914034]
[1730632213617,23.776884,164.4,164.34,1.90948137]
[1730632213912,23.776884,164.4,164.35,1.90948137]
[1730632214129,23.776884,164.4,164.33,6.33914034]
[1730632214304,23.776884,164.4,164.34,1.90963891]
[1730632214618,23.776884,164.4,164.33,6.33914034]
[1730632214619,0.25098,164.39,164.35,1.90963891]
[1730632214804,0.25098,164.39,164.34,1.90963891]
[1730632215008,0.25098,164.39,164.35,1.90963891]
[1730632215217,15.9139,164.38,164.34,1.90963891]
[1730632215406,23.776884,164.37,164.35,1.90963891]
[1730632215599,23.776884,164.37,164.34,1.90963891]
[1730632215799,23.776884,164.37,164.3,6.34013499]
[1730632216028,23.776884,164.37,164.31,1.90939339]
[1730632216200,23.776884,164.37,164.32,1.90939339]
[1730632216397,23.776884,164.37,164.33,1.90939339]
[1730632216703,23.776884,164.37,164.3,6.34013499]
[1730632216892,23.776884,164.37,164.31,1.90939411]
[1730632217104,23.776884,164.37,164.32,1.90939411]
[1730632217304,23.776884,164.37,164.33,1.90939411]
[1730632217521,23.776884,164.37,164.31,1.90939411]
[1730632217730,23.776884,164.37,164.32,1.90939411]
[1730632218022,23.776884,164.37,164.33,1.90939411]
[1730632218199,23.776884,164.37,164.34,1.90939411]
[1730632218404,23.776884,164.37,164.31,1.90939411]
[1730632218609,23.776884,164.37,164.32,1.90939411]
[1730632218927,23.776884,164.37,164.33,1.90939411]
[1730632219218,23.776884,164.37,164.31,1.90939411]
[1730632219421,23.776884,164.37,164.32,1.90939411]
[1730632219725,23.776884,164.37,164.33,1.90939411]
[1730632219903,23.776884,164.37,164.31,1.90939411]
[1730632220097,23.776884,164.37,164.32,1.90939411]
[1730632220301,23.776884,164.37,164.33,1.90939411]
[1730632220622,23.776884,164.39,164.31,1.90939411]
[1730632220919,23.776884,164.39,164.32,1.90939411]
[1730632221223,20.0,164.4,164.33,1.90939411]
[1730632221436,20.0,164.41,164.32,1.90939411]
[1730632221728,20.0,164.41,164.31,15.0754]
[1730632221729,15.9139,164.42,164.33,1.90939411]
[1730632222019,15.9139,164.42,164.34,1.90939411]
[1730632222323,15.9139,164.42,164.35,1.90939411]
[1730632222501,23.776884,164.41,164.33,1.90939411]
[1730632222702,23.776884,164.41,164.34,1.90939411]
[1730632222921,23.776884,164.41,164.32,6.6489]
[1730632223119,23.776884,164.41,164.35,1.90880156]
[1730632223423,23.776884,164.41,164.33,1.90880156]
[1730632223721,23.776884,164.41,164.34,1.90880156]
[1730632223919,23.776884,164.41,164.35,1.90880156]
[1730632224130,23.776884,164.41,164.33,1.90880156]
[1730632224306,23.776884,164.41,164.34,1.90880156]
[1730632224505,23.776884,164.41,164.35,1.90880156]
[1730632224719,23.776884,164.41,164.33,1.90880156]
[1730632224924,23.776884,164.41,164.34,1.90880156]
[1730632225226,23.776884,164.41,164.35,1.90880156]
[1730632225404,23.776884,164.41,164.33,1.90880156]
[1730632225606,23.776884,164.41,164.34,1.90880156]
[1730632225807,23.776884,164.41,164.32,6.6489]
[1730632225808,23.776884,164.41,164.35,1.90880156]
[1730632226021,23.776884,164.41,164.33,1.90880156]
[1730632226321,23.776884,164.41,164.34,1.90880156]
[1730632226621,23.776884,164.41,164.35,1.90880156]
[1730632226932,23.776884,164.41,164.36,1.90880156]
[1730632227102,23.776884,164.41,164.33,1.90880156]
[1730632227303,23.776884,164.41,164.34,1.90880156]
[1730632227505,23.776884,164.41,164.35,1.90880156]
[1730632227806,23.776884,164.41,164.33,1.90880156]
[1730632228023,23.776884,164.41,164.34,1.90880156]
[1730632228212,23.776884,164.41,164.35,1.90880156]
[1730632228413,23.776884,164.41,164.36,1.90880156]
[1730632228633,23.776884,164.41,164.33,1.90880156]
[1730632228816,23.776884,164.41,164.34,1.90880156]
[1730632229016,23.776884,164.41,164.35,1.90880156]
[1730632229211,23.776884,164.41,164.32,1.90880156]
[1730632229523,23.776884,164.41,164.33,1.90880156]
[1730632229725,23.776884,164.41,164.34,1.90880156]
[1730632230025,23.776884,164.41,164.32,1.90880156]
[1730632230326,23.776884,164.41,164.33,1.90880156]
[1730632230529,23.776884,164.41,164.34,1.90880156]
[1730632230743,23.776884,164.41,164.32,1.90880156]
[1730632230916,23.776884,164.41,164.32,1.90972012]
[1730632231112,23.776884,164.41,164.33,1.90972012]
[1730632231326,23.776884,164.41,164.34,1.90972012]
[1730632231632,15.9139,164.42,164.33,0.25098]
[1730632231921,15.9139,164.42,164.34,1.90972012]
[1730632232115,44.027864,164.44,164.35,1.90972012]
[1730632232304,6.3683,164.45,164.36,1.90972012]
[1730632232509,6.3683,164.45,164.35,1.90972012]
[1730632232713,6.3683,164.45,164.36,1.90972012]
[1730632232935,6.3683,164.45,164.35,1.90972012]
[1730632233228,6.3683,164.45,164.36,1.90972012]
[1730632233404,6.3683,164.45,164.35,1.90972012]
[1730632233607,23.776884,164.44,164.36,1.90972012]
[1730632233800,23.776884,164.44,164.35,1.90972012]
[1730632234031,23.776884,164.44,164.36,1.90972012]
[1730632234221,23.776884,164.44,164.35,1.90972012]
[1730632234407,23.776884,164.44,164.36,1.90897833]
[1730632234608,23.776884,164.44,164.35,1.90897833]
[1730632234907,23.776884,164.44,164.36,1.90897833]
[1730632235109,23.776884,164.44,164.35,1.90897833]
[1730632235303,23.776884,164.44,164.36,1.90897833]
[1730632235619,23.776884,164.44,164.35,1.90897833]
[1730632235806,23.776884,164.44,164.36,1.90897833]
[1730632236008,23.776884,164.44,164.35,1.90897833]
[1730632236328,23.776884,164.44,164.36,1.90897833]
[1730632236503,23.776884,164.44,164.35,1.90897833]
[1730632236708,23.776884,164.44,164.36,1.90897833]
[1730632236909,23.776884,164.44,164.35,1.90897833]
[1730632237209,23.776884,164.44,164.36,1.90897833]
[1730632237526,23.776884,164.44,164.35,1.90897833]
[1730632237718,23.776884,164.44,164.36,1.90897833]
[1730632237911,23.776884,164.44,164.35,1.90897833]
[1730632238111,23.776884,164.44,164.36,1.90897833]
[1730632238422,23.776884,164.44,164.34,6.1741]
[1730632238625,23.776884,164.44,164.35,1.90929282]
[1730632238824,23.776884,164.44,164.34,6.1741]
[1730632239015,23.776884,164.44,164.35,1.90939606]
[1730632239215,23.776884,164.44,164.36,1.90939606]
[1730632239417,23.776884,164.44,164.35,1.90939606]
[1730632239619,23.776884,164.44,164.36,1.90939606]
[1730632239826,23.776884,164.44,164.35,1.90939606]
[1730632240032,23.776884,164.44,164.36,1.90939606]
[1730632240215,23.776884,164.44,164.35,1.90939606]
[1730632240536,23.776884,164.44,164.36,1.90939606]
[1730632240737,23.776884,164.44,164.35,1.90939606]
[1730632240938,23.776884,164.44,164.36,1.90939606]
[1730632241111,23.776884,164.44,164.35,1.90939606]
[1730632241312,23.776884,164.44,164.36,1.90939606]
[1730632241534,23.776884,164.44,164.35,1.90939606]
[1730632241736,23.776884,164.44,164.36,1.90939606]
[1730632241937,23.776884,164.44,164.34,6.1741]
[1730632241938,23.776884,164.44,164.35,1.90939606]
[1730632242528,23.776884,164.44,164.34,6.1741]
[1730632243927,23.776884,164.44,164.35,1.91041163]
[1730632244135,23.776884,164.44,164.36,1.91030568]
[1730632244438,23.776884,164.44,164.35,1.91030568]
[1730632244637,23.776884,164.44,164.36,1.91030568]
[1730632244845,23.776884,164.44,164.35,1.91030568]
[1730632245035,23.776884,164.44,164.36,1.91030568]
[1730632245452,23.776884,164.44,164.35,1.91030568]
[1730632245759,23.776884,164.44,164.36,1.91030568]
[1730632245932,23.776884,164.44,164.35,1.91030568]
[1730632246131,23.776884,164.44,164.36,1.91030568]
[1730632246333,23.776884,164.44,164.35,1.91030568]
[1730632246529,23.776884,164.44,164.36,1.91030568]
[1730632246740,23.776884,164.44,164.35,1.91030568]
[1730632246947,23.776884,164.44,164.36,1.91030568]
[1730632247334,23.776884,164.44,164.35,1.91030568]
[1730632247535,23.776884,164.44,164.36,1.91030568]
[1730632247746,23.776884,164.44,164.35,1.91030568]
[1730632248049,23.776884,164.44,164.36,1.91030568]
[1730632248235,23.776884,164.44,164.37,1.91030568]
[1730632248435,23.776884,164.44,164.35,1.91030568]
[1730632248639,23.776884,164.44,164.34,12.51526977]
[1730632248640,23.776884,164.44,164.36,1.91030568]
[1730632248836,23.776884,164.44,164.37,1.91030568]
[1730632249042,23.776884,164.44,164.35,1.91030568]
[1730632249250,23.776884,164.44,164.36,1.91030568]
[1730632249435,23.776884,164.44,164.34,12.51526977]
[1730632249436,23.776884,164.44,164.37,1.91030568]
[1730632249728,23.776884,164.44,164.34,12.51526977]
[1730632249933,6.3683,164.45,164.36,0.12549]
[1730632250155,23.776884,164.45,164.37,1.91217605]
[1730632250358,23.776884,164.45,164.38,1.91217605]
[1730632250552,23.776884,164.45,164.36,0.12549]
[1730632250731,41.83635547,164.5,164.38,0.25098]
[1730632250932,40.7785003,164.5,164.38,0.25098]
[1730632251147,40.7785003,164.5,164.39,1.91230495]
[1730632251345,40.7785003,164.5,164.38,0.25098]
[1730632251540,40.7785003,164.5,164.39,1.91283804]
[1730632251758,40.7785003,164.5,164.38,0.25098]
[1730632251957,0.12549,164.49,164.39,1.91286576]
[1730632252132,0.12549,164.49,164.38,0.25098]
[1730632252465,0.12549,164.49,164.39,1.91324212]
[1730632252636,0.12549,164.49,164.38,0.25098]
[1730632252836,0.12549,164.49,164.39,1.91375856]
[1730632253037,23.776884,164.49,164.38,0.25098]
[1730632253267,23.776884,164.49,164.39,1.91358951]
[1730632253444,23.776884,164.49,164.4,1.91358951]
[1730632253647,16.4065003,164.5,164.41,2.29005951]
[1730632253854,16.4065003,164.5,164.42,1.91358951]
[1730632254157,16.4065003,164.5,164.41,0.37647]
[1730632254335,16.4065003,164.5,164.42,1.91145854]
[1730632255637,23.776884,164.49,164.42,3.82228988]
[1730632255860,23.776884,164.49,164.42,1.91145854]
[1730632257838,20.25098,164.48,164.42,1.91145854]
[1730632258056,23.776884,164.47,164.42,1.91145854]
[1730632260361,16.4065003,164.5,164.42,1.91145854]
[1730632260565,23.776884,164.49,164.42,1.91145854]
[1730632261066,0.3062003,164.5,164.42,1.91145854]
[1730632261361,0.3062003,164.5,164.43,0.25098]
[1730632261555,0.3062003,164.5,164.43,2.16062167]
[1730632262835,0.3062003,164.5,164.45,0.12549]
[1730632270067,0.3062003,164.5,164.46,0.12549]
[1730632270260,0.3062003,164.5,164.46,0.37647]
[1730632270455,0.3062003,164.5,164.46,0.25098]
[1730632270846,0.3062003,164.5,164.45,0.37647]
[1730632271765,0.3062003,164.5,164.45,0.12549]
[1730632272182,0.3062003,164.5,164.44,0.37647]
[1730632273066,0.3062003,164.5,164.44,2.27699329]
[1730632274480,0.3062003,164.5,164.44,0.37647]
[1730632280055,0.3062003,164.5,164.46,0.12549]
[1730632280264,0.3062003,164.5,164.46,0.25098]
[1730632280567,0.3062003,164.5,164.46,0.12549]
[1730632280883,0.3062003,164.5,164.46,0.25098]
[1730632285369,0.3062003,164.5,164.45,23.776884]
[1730632287983,0.3062003,164.5,164.45,0.12549]
[1730632288169,0.3062003,164.5,164.45,0.25098]
[1730632288979,0.3062003,164.5,164.43,6.33888698]
[1730632301300,0.3062003,164.5,164.44,1.91343153]
[1730632301488,0.3062003,164.5,164.45,1.91343153]
[1730632301688,0.3062003,164.5,164.44,1.91343153]
[1730632301877,0.3062003,164.5,164.45,1.91343153]
[1730632304307,0.3062003,164.5,164.45,1.9132247]
[1730632304479,0.3062003,164.5,164.46,1.9132247]
[1730632304680,0.3062003,164.5,164.45,1.9132247]
[1730632304884,0.3062003,164.5,164.46,1.9132247]
[1730632305101,0.3062003,164.5,164.45,1.9132247]
[1730632305283,0.3062003,164.5,164.46,1.9132247]
[1730632305600,0.3062003,164.5,164.44,6.33913069]
[1730632305811,0.3062003,164.5,164.45,25.8172822]
[1730632306101,0.3062003,164.5,164.46,1.91481064]
[1730632306397,0.3062003,164.5,164.47,1.91481064]
[1730632306599,0.3062003,164.5,164.45,23.902374]
[1730632306600,0.3062003,164.5,164.46,1.91481064]
[1730632306900,0.3062003,164.5,164.47,1.91481064]
[1730632307104,0.3062003,164.5,164.46,1.91481064]
[1730632307280,0.3062003,164.5,164.47,1.91481064]
[1730632307605,0.3062003,164.5,164.46,1.91481064]
[1730632307897,0.3062003,164.5,164.47,1.91481064]
[1730632308104,0.3062003,164.5,164.45,23.902374]
[1730632308276,0.3062003,164.5,164.46,1.91506174]
[1730632308481,0.3062003,164.5,164.45,23.902374]
[1730632308482,0.3062003,164.5,164.47,1.91506174]
[1730632308679,0.3062003,164.5,164.45,23.902374]
[1730632308903,0.3062003,164.5,164.46,1.91514213]
[1730632309081,0.3062003,164.5,164.47,1.91514213]
[1730632309401,0.3062003,164.5,164.45,23.902374]
[1730632309608,0.3062003,164.5,164.46,1.91507604]
[1730632309904,0.3062003,164.5,164.47,1.91507604]
[1730632310202,0.3062003,164.5,164.45,23.902374]
[1730632310384,0.3062003,164.5,164.46,1.91523771]
[1730632310575,0.3062003,164.5,164.47,1.91523771]
[1730632310780,0.3062003,164.5,164.45,23.902374]
[1730632310982,0.3062003,164.5,164.46,1.91536034]
[1730632311200,0.3062003,164.5,164.47,1.91536034]
[1730632311382,0.3062003,164.5,164.45,23.902374]
[1730632311578,0.3062003,164.5,164.46,1.91530778]
[1730632311784,0.3062003,164.5,164.47,1.91530778]
[1730632311983,0.3062003,164.5,164.48,1.91530778]
[1730632312310,0.3062003,164.5,164.45,6.33869896]
[1730632312479,0.3062003,164.5,164.46,1.91506013]
[1730632312681,0.3062003,164.5,164.47,1.91506013]
[1730632312902,0.3062003,164.5,164.48,1.91506013]
[1730632313099,0.3062003,164.5,164.45,6.33869896]
[1730632313409,0.3062003,164.5,164.46,1.91546309]
[1730632313702,0.3062003,164.5,164.47,1.91546309]
[1730632313895,0.3062003,164.5,164.45,6.33869896]
[1730632314101,0.3062003,164.5,164.46,1.91565413]
[1730632314287,0.3062003,164.5,164.47,1.91565413]
[1730632314482,0.3062003,164.5,164.45,6.33869896]
[1730632314682,0.3062003,164.5,164.46,1.91572925]
[1730632314885,0.3062003,164.5,164.47,1.91572925]
[1730632315089,0.3062003,164.5,164.45,6.33869896]
[1730632315399,0.3062003,164.5,164.46,1.91584775]
[1730632315589,0.3062003,164.5,164.47,1.91584775]
[1730632315790,0.3062003,164.5,164.45,6.33869896]
[1730632316102,0.3062003,164.5,164.46,1.91547284]
[1730632316304,0.3062003,164.5,164.47,1.91547284]
[1730632316504,0.3062003,164.5,164.48,1.91547284]
[1730632316711,0.3062003,164.5,164.46,1.91547284]
[1730632317006,0.3062003,164.5,164.47,1.91534664]
[1730632317209,0.3062003,164.5,164.45,6.33869896]
[1730632317506,0.3062003,164.5,164.46,1.91535567]
[1730632317809,0.3062003,164.5,164.47,1.91535567]
[1730632317985,0.3062003,164.5,164.45,6.33869896]
[1730632318307,0.3062003,164.5,164.46,1.91530062]
[1730632318508,0.3062003,164.5,164.47,1.91530062]
[1730632318694,0.3062003,164.5,164.45,6.33869896]
[1730632318907,0.3062003,164.5,164.46,1.91499965]
[1730632319195,0.3062003,164.5,164.47,1.91499965]
[1730632319394,0.3062003,164.5,164.45,6.33869896]
[1730632319704,0.3062003,164.5,164.46,1.91489211]
[1730632320007,0.3062003,164.5,164.45,6.33869896]
[1730632320301,0.3062003,164.5,164.46,1.91476918]
[1730632320500,0.3062003,164.5,164.45,6.33869896]
[1730632320904,0.3062003,164.5,164.46,1.91480113]
[1730632321105,0.3062003,164.5,164.45,6.33869896]
[1730632321306,0.3062003,164.5,164.46,1.91467535]
[1730632321603,0.3062003,164.5,164.47,1.91467535]
[1730632321808,0.3062003,164.5,164.45,6.33869896]
[1730632322112,0.3062003,164.5,164.46,1.91490577]
[1730632322404,0.3062003,164.5,164.47,1.91490577]
[1730632322613,0.3062003,164.5,164.45,6.33869896]
[1730632322785,0.3062003,164.5,164.46,1.9144838]
[1730632322983,0.3062003,164.5,164.47,1.91448066]
[1730632323182,0.3062003,164.5,164.45,6.33869896]
[1730632323586,0.3062003,164.5,164.46,1.91473352]
[1730632323791,0.3062003,164.5,164.47,1.91473352]
[1730632323986,0.3062003,164.5,164.48,1.91473352]
[1730632324188,0.3062003,164.5,164.45,6.33869896]
[1730632324414,0.3062003,164.5,164.46,1.91446433]
[1730632324709,0.3062003,164.5,164.47,1.91446433]
[1730632324921,0.3062003,164.5,164.48,1.91446433]
[1730632325208,0.3062003,164.5,164.45,6.33869896]
[1730632325410,0.3062003,164.5,164.46,1.91456164]
[1730632325614,0.3062003,164.5,164.47,1.91456164]
[1730632325791,0.3062003,164.5,164.48,1.91456164]
[1730632325995,0.3062003,164.5,164.45,6.34053937]
[1730632326194,0.3062003,164.5,164.46,1.91521735]
[1730632326401,0.3062003,164.5,164.47,1.91521735]
[1730632326605,0.3062003,164.5,164.48,1.91521735]
[1730632326805,0.3062003,164.5,164.45,6.34053937]
[1730632327005,0.3062003,164.5,164.46,1.91546264]
[1730632327310,0.3062003,164.5,164.47,1.91543509]
[1730632327608,0.3062003,164.5,164.48,1.91543509]
[1730632327812,0.3062003,164.5,164.45,6.34053937]
[1730632327991,0.3062003,164.5,164.46,1.91559614]
[1730632328195,0.3062003,164.5,164.47,1.91559614]
[1730632328391,0.3062003,164.5,164.48,1.91559614]
[1730632328615,0.3062003,164.5,164.45,6.34053937]
[1730632328808,0.3062003,164.5,164.46,1.91566829]
[1730632329009,0.3062003,164.5,164.47,1.91566829]
[1730632329301,0.3062003,164.5,164.48,1.91566829]
[1730632329491,0.3062003,164.5,164.49,1.91566829]
[1730632330513,0.3062003,164.5,164.49,1.91530671]
[1730632333815,0.3062003,164.5,164.47,1.91530671]
[1730632334019,0.3062003,164.5,164.48,1.91530671]
[1730632334207,0.3062003,164.5,164.46,24.027864]
[1730632334408,0.3062003,164.5,164.47,1.91546351]
[1730632334606,0.3062003,164.5,164.46,24.027864]
[1730632334607,0.3062003,164.5,164.48,1.91546351]
[1730632334813,0.3062003,164.5,164.45,22.99753937]
[1730632335013,0.3062003,164.5,164.46,1.91525367]
[1730632335228,0.3062003,164.5,164.47,1.91525367]
[1730632335531,0.3062003,164.5,164.45,6.34053937]
[1730632335708,0.3062003,164.5,164.46,1.91516727]
[1730632335904,0.3062003,164.5,164.47,1.91516727]
[1730632336110,0.3062003,164.5,164.45,6.34053937]
[1730632336315,0.3062003,164.5,164.46,1.91504703]
[1730632336620,0.3062003,164.5,164.47,1.91504703]
[1730632336805,15.8307003,164.5,164.46,1.91505116]
[1730632337121,15.8307003,164.5,164.45,6.34053937]
[1730632338131,15.8307003,164.5,164.46,1.91516295]
[1730632338132,0.3062003,164.5,164.46,1.91516295]
[1730632338297,0.3062003,164.5,164.47,1.91516295]
[1730632338497,0.3062003,164.5,164.45,6.34053937]
[1730632338698,0.3062003,164.5,164.46,25.94261236]
[1730632338907,0.3062003,164.5,164.48,24.027864]
[1730632339239,0.3062003,164.5,164.49,1.91474836]
[1730632341029,0.3062003,164.5,164.48,24.027864]
[1730632341411,0.3062003,164.5,164.49,1.91453851]
[1730632346310,0.3062003,164.5,164.49,25.94240251]
[1730632346914,0.3062003,164.5,164.49,26.06789251]
[1730632351724,0.3062003,164.5,164.49,46.06789251]
[1730632352630,0.3062003,164.5,164.49,52.54159251]
[1730632352811,0.3062003,164.5,164.49,52.64159251]
[1730632353016,0.3062003,164.5,164.49,68.48139251]
[1730632353211,0.3062003,164.5,164.49,68.38139251]
[1730632353732,0.3062003,164.5,164.49,61.90769251]
[1730632353935,0.3062003,164.5,164.49,46.06789251]
[1730632355331,0.3062003,164.5,164.49,26.06789251]
[1730632355534,0.3062003,164.5,164.49,25.94240251]
[1730632358742,0.3062003,164.5,164.49,24.027864]
[1730632358946,0.3062003,164.5,164.49,25.94107399]
[1730632362449,0.3062003,164.5,164.49,24.027864]
[1730632362627,0.3062003,164.5,164.49,25.94051534]
[1730632364435,0.3062003,164.5,164.49,2.1636986]
[1730632364627,0.3062003,164.5,164.49,25.9405826]
[1730632366353,0.3062003,164.5,164.49,2.16397251]
[1730632366532,0.3062003,164.5,164.49,25.94085651]
[1730632367041,0.3062003,164.5,164.49,1.91299251]
[1730632367842,0.3062003,164.5,164.48,1.91299251]
[1730632368035,0.3062003,164.5,164.49,1.91299251]
[1730632368439,0.3062003,164.5,164.47,6.3404697]
[1730632368440,0.3062003,164.5,164.48,1.91299251]
[1730632368743,0.3062003,164.5,164.47,6.3404697]
[1730632368948,0.3062003,164.5,164.48,1.91435519]
[1730632369133,0.3062003,164.5,164.47,6.3404697]
[1730632369328,0.3062003,164.5,164.48,1.91438537]
[1730632369529,0.3062003,164.5,164.47,6.3404697]
[1730632370146,0.3062003,164.5,164.48,1.91447417]
[1730632370347,0.3062003,164.5,164.49,1.91447417]
[1730632370719,0.3062003,164.5,164.49,25.94233817]
[1730632374444,0.3062003,164.5,164.49,25.81684817]
[1730632374649,0.3062003,164.5,164.49,25.94233817]
[1730632375954,0.3062003,164.5,164.49,26.06782817]
[1730632380660,0.3062003,164.5,164.49,26.06779735]
[1730632383142,0.3062003,164.5,164.49,26.06779593]
[1730632386657,0.3062003,164.5,164.49,24.153354]
[1730632386849,0.3062003,164.5,164.49,26.06938006]
[1730632393672,0.3062003,164.5,164.49,2.29241527]
[1730632393969,0.3062003,164.5,164.49,26.06929927]
[1730632394266,0.3062003,164.5,164.49,26.16929927]
[1730632395668,0.3062003,164.5,164.49,26.16920742]
[1730632398574,0.3062003,164.5,164.49,26.26920742]
[1730632400058,0.3062003,164.5,164.49,26.16920742]
[1730632400663,0.3062003,164.5,164.49,24.353354]
[1730632400856,0.3062003,164.5,164.49,26.26921566]
[1730632401263,0.3062003,164.5,164.49,26.16921566]
[1730632402080,0.3062003,164.5,164.49,1.91586166]
[1730632402666,0.3062003,164.5,164.49,2.04135166]
[1730632403453,0.3062003,164.5,164.49,26.06921566]
[1730632404378,0.3062003,164.5,164.49,26.06889353]
[1730632410360,0.3062003,164.5,164.49,26.16889353]
[1730632411486,0.3062003,164.5,164.49,2.39059821]
[1730632411654,0.3062003,164.5,164.49,26.16748221]
[1730632411854,0.3062003,164.5,164.49,26.16743453]
[1730632412779,0.3062003,164.5,164.49,26.26743453]
[1730632415572,0.3062003,164.5,164.49,32.25228975]
[1730632416569,15.6205003,164.59,164.53,0.37647]
[1730632416882,0.3062003,164.59,164.57,0.37647]
[1730632417087,0.3062003,164.59,164.58,26.06755384]
[1730632418269,0.3062003,164.59,164.58,1.91419984]
[1730632418474,0.3062003,164.59,164.58,2.03968984]
[1730632418687,0.3062003,164.59,164.58,2.03813229]
[1730632419290,0.3062003,164.59,164.58,0.12549]
[1730632419467,0.3062003,164.59,164.58,0.37647]
[1730632419667,0.3062003,164.59,164.58,26.06560157]
[1730632420485,0.3062003,164.59,164.58,24.153354]
[1730632424282,0.3062003,164.59,164.58,0.37647]
[1730632425680,0.3062003,164.59,164.58,0.47647]
[1730632427492,0.3062003,164.59,164.58,0.57647]
[1730632427682,0.3062003,164.59,164.58,24.353354]
[1730632430080,0.3062003,164.59,164.58,26.26253504]
[1730632430284,0.3062003,164.59,164.58,26.16253504]
[1730632430496,0.3062003,164.59,164.58,2.38532592]
[1730632430796,0.3062003,164.59,164.58,24.353354]
[1730632431000,0.3062003,164.59,164.58,26.26221301]
[1730632432494,0.3062003,164.59,164.58,26.16221301]
[1730632432702,0.3062003,164.59,164.58,26.26221301]
[1730632434112,0.3062003,164.59,164.58,26.06221301]
[1730632434477,0.3062003,164.59,164.58,0.37647]
[1730632434803,0.3062003,164.59,164.58,26.06218406]
[1730632435395,0.3062003,164.59,164.58,0.37647]
[1730632435905,0.3062003,164.59,164.58,24.253354]
[1730632436388,0.3062003,164.59,164.58,0.47647]
[1730632437609,0.3062003,164.59,164.58,0.37647]
[1730632439208,0.3062003,164.59,164.54,6.08485522]
[1730632439508,0.3062003,164.59,164.55,1.90839104]
[1730632439697,0.3062003,164.59,164.57,0.12549]
[1730632440508,0.3062003,164.59,164.57,24.153354]
[1730632440811,0.3062003,164.59,164.57,0.37647]
[1730632440998,0.3062003,164.59,164.58,23.902374]
[1730632441193,0.3062003,164.59,164.58,0.37647]
[1730632441402,0.3062003,164.59,164.58,24.153354]
[1730632441887,0.3062003,164.59,164.58,24.027864]
[1730632442301,0.3062003,164.59,164.58,23.902374]
[1730632443811,0.3062003,164.59,164.58,24.153354]
[1730632445982,0.3062003,164.59,164.53,6.34144649]
[1730632446181,0.3062003,164.59,164.54,1.90865982]
[1730632446511,0.3062003,164.59,164.55,2.03414982]